[Event "Prague Open 2025"]
[Site "Prague"]
[Date "2025.01.10"]
[Round "1.20"]
[White "Mikhno, Artem"]
[Black "Fizer, Marek"]
[Result "0-1"]
[Annotator "RC"]
[ECO "D20"]
[WhiteElo "1861"]
[BlackElo "2155"]
[PlyCount "76"]
[EventDate "2025.01.07"]
[EventType "swiss"]
[EventCountry "CZE"]
[SourceTitle "playchess.com"]
[Source "ChessBase"]
[SourceQuality "1"]
[TimeControl "40/5400+30:1800+30"]

1. d4 {[%emt 0:00:03]} d5 {[%emt 0:00:14]} 2. c4 {[%emt 0:00:08]} dxc4 {[%emt 0:00:13]} 3. e3 {[%emt 0:00:30]} Nf6 {[%emt 0:00:25]} 4. Bxc4 {[%emt 0:00:17]} e6 {[%emt 0:00:21]} 5. Nc3 {[%emt 0:00:37]} c5 {[%emt 0:00:40]} 6. Nf3 {[%emt 0:00:53]} Nc6 {[%emt 0:01:35]} 7. O-O {[%emt 0:01:23]} Be7 {[%emt 0:05:35]} 8. dxc5 {[%emt 0:06:32]} Bxc5 {[%emt 0:00:22]} 9. Qxd8+ {[%emt 0:00:33]} Kxd8 {[%emt 0:00:08]} 10. Rd1+ {[%emt 0:00:30]} Ke7 {[%emt 0:00:12]} 11. a3 {[%emt 0:00:18]} a6 {[%emt 0:04:05]} 12. b4 {[%emt 0:00:11]} Bd6 {[%emt 0:01:08]} 13. Bb2 {[%emt 0:04:15]} b5 {[%emt 0:12:03]} 14. Bb3 {[%emt 0:02:31]} Bb7 {[%emt 0:02:40]} 15. Kf1 {[%emt 0:01:11]} Rac8 {[%emt 0:08:33]} 16. Ne2 {[%emt 0:08:28]} a5 {[%emt 0:16:36]} 17. Nfd4 {[%emt 0:05:04]} Nxd4 {[%emt 0:01:35]} 18. Nxd4 {[%emt 0:00:22]} Bxh2 {[%emt 0:25:41]} 19. bxa5 {[%emt 0:10:50]} h5 {[%emt 0:02:48]} 20. Nxb5 {[%emt 0:07:15]} h4 {[%emt 0:06:21]} 21. a4 {[%emt 0:01:01]} Ng4 {[%emt 0:05:04]} 22. Rd4 {[%emt 0:02:30]} Be5 {[%emt 0:02:01]} 23. Rxg4 {[%emt 0:04:42]} Bxb2 {[%emt 0:00:03]} 24. Rb1 {[%emt 0:00:07]} Be5 {[%emt 0:00:21]} 25. Ke2 {[%emt 0:06:58]} f5 {[%emt 0:00:26]} 26. Rg6 {[%emt 0:00:03]} Bf6 {[%emt 0:00:11]} 27. g4 {[%emt 0:02:52]} Be4 {[%emt 0:02:36]} 28. Rd1 {[%emt 0:03:42]} f4 {[%emt 0:00:10]} 29. Rxf6 {[%emt 0:00:36]} Kxf6 {[%emt 0:00:26]} 30. Nd6 {[%emt 0:00:08]} Bg2 {[%emt 0:00:08]} 31. g5+ {[%emt 0:00:50]} Kg6 {[%emt 0:00:45]} 32. Bxe6 {[%emt 0:02:21]} f3+ {[%emt 0:00:58]} 33. Kd3 {[%emt 0:00:21]} Rc6 {[%emt 0:00:42]} 34. Ke4 {[%emt 0:00:14]} h3 {[%emt 0:01:02]} 35. Bf5+ {[%emt 0:00:47]} Kh5 {[%emt 0:01:06]} 36. Bxh3 {[%emt 0:00:31]} Bxh3 {[%emt 0:00:09]} 37. Rh1 {[%emt 0:00:14]} Kg6 {[%emt 0:00:14]} 38. Kd5 {[%emt 0:01:22]} Ra6 {[%emt 0:00:18]} 0-1

[Event "Prague Open 2025"]
[Site "Prague"]
[Date "2025.01.10"]
[Round "1.21"]
[White "Adrian, Claude"]
[Black "Policar, Martin"]
[Result "1-0"]
[Annotator "RC"]
[ECO "A16"]
[WhiteElo "2151"]
[BlackElo "1861"]
[PlyCount "53"]
[EventDate "2025.01.07"]
[EventType "swiss"]
[EventCountry "CZE"]
[SourceTitle "playchess.com"]
[Source "ChessBase"]
[SourceQuality "1"]
[TimeControl "40/5400+30:1800+30"]

1. c4 {[%emt 0:00:12]} Nf6 {[%emt 0:00:12]} 2. Nc3 {[%emt 0:00:06]} d5 {[%emt 0:00:06]} 3. cxd5 {[%emt 0:00:06]} Nxd5 {[%emt 0:00:07]} 4. g3 {[%emt 0:00:07]} g6 {[%emt 0:00:14]} 5. Bg2 {[%emt 0:00:08]} Nxc3 {[%emt 0:00:11]} 6. bxc3 {[%emt 0:00:09]} Bg7 {[%emt 0:00:04]} 7. Rb1 {[%emt 0:00:09]} Nd7 {[%emt 0:00:38]} 8. h4 {[%emt 0:04:48]} h5 {[%emt 0:02:59]} 9. Nh3 {[%emt 0:03:05]} c6 {[%emt 0:09:28]} 10. O-O {[%emt 0:04:58]} O-O {[%emt 0:13:56]} 11. Ng5 {[%emt 0:01:28]} Nb6 {[%emt 0:07:32]} 12. a4 {[%emt 0:05:27]} Bf5 {[%emt 0:01:42]} 13. e4 {[%emt 0:01:39]} Bg4 {[%emt 0:00:03]} 14. f3 {[%emt 0:00:49]} Bc8 {[%emt 0:00:35]} 15. Qc2 {[%emt 0:08:52]} Qd6 {[%emt 0:01:34]} 16. Kh2 {[%emt 0:03:27]} Nc4 {[%emt 0:18:17]} 17. Qa2 {[%emt 0:04:42]} Na5 {[%emt 0:13:00]} 18. d4 {[%emt 0:02:12]} b6 {[%emt 0:00:47]} 19. f4 {[%emt 0:07:54]} Ba6 {[%emt 0:00:57]} 20. e5 {[%emt 0:01:05]} Qc7 {[%emt 0:00:22]} 21. f5 {[%emt 0:08:14]} gxf5 {[%emt 0:04:43]} 22. Rxf5 {[%emt 0:03:11]} Bd3 {[%emt 0:01:45]} 23. Rxf7 {[%emt 0:01:04]} Bc4 {[%emt 0:01:05]} 24. Rxf8+ {[%emt 0:06:45]} Rxf8 {[%emt 0:01:56]} 25. Qc2 {[%emt 0:00:06]} Rd8 {[%emt 0:01:11]} 26. Qh7+ {[%emt 0:01:38]} Kf8 {[%emt 0:00:05]} 27. Ba3 {[%emt 0:00:10]} 1-0

[Event "Prague Open 2025"]
[Site "Prague"]
[Date "2025.01.11"]
[Round "2.1"]
[White "Wilks, Simon"]
[Black "Harshavardhan G B"]
[Result "0-1"]
[Annotator "RC"]
[ECO "C74"]
[WhiteElo "2069"]
[BlackElo "2405"]
[PlyCount "92"]
[EventDate "2025.01.07"]
[EventType "swiss"]
[EventCountry "CZE"]
[SourceTitle "playchess.com"]
[Source "ChessBase"]
[SourceQuality "1"]
[TimeControl "40/5400+30:1800+30"]

1. e4 {[%emt 0:08:19]} e5 {[%emt 0:00:22]} 2. Nf3 {[%emt 0:00:18]} Nc6 {[%emt 0:00:26]} 3. Bb5 {[%emt 0:00:39]} a6 {[%emt 0:00:10]} 4. Ba4 {[%emt 0:00:08]} d6 {[%emt 0:00:10]} 5. c3 {[%emt 0:01:49]} f5 {[%emt 0:00:40]} 6. d4 {[%emt 0:32:42]} fxe4 {[%emt 0:03:08]} 7. Ng5 {[%emt 0:00:30]} exd4 {[%emt 0:01:30]} 8. Nxe4 {[%emt 0:06:11]} Nf6 {[%emt 0:04:20]} 9. Bg5 {[%emt 0:02:59]} Be7 {[%emt 0:02:08]} 10. Bxc6+ {[%emt 0:04:17]} bxc6 {[%emt 0:00:10]} 11. Qxd4 {[%emt 0:00:18]} c5 {[%emt 0:07:14]} 12. Qd3 {[%emt 0:05:43]} Rb8 {[%emt 0:05:42]} 13. O-O {[%emt 0:05:02]} O-O {[%emt 0:00:24]} 14. Nbd2 {[%emt 0:04:07]} Nxe4 {[%emt 0:03:06]} 15. Nxe4 {[%emt 0:01:16]} Rxb2 {[%emt 0:10:46]} 16. Rae1 {[%emt 0:08:33]} Bxg5 {[%emt 0:04:46]} 17. Qd5+ {[%emt 0:00:33]} Kh8 {[%emt 0:00:08]} 18. Nxg5 {[%emt 0:00:53]} Qf6 {[%emt 0:00:18]} 19. Ne4 {[%emt 0:05:08]} Qf5 {[%emt 0:02:04]} 20. Qd3 {[%emt 0:03:21]} Bb7 {[%emt 0:00:18]} 21. f3 {[%emt 0:00:46]} Qd5 {[%emt 0:01:34]} 22. Qe3 {[%emt 0:00:59]} Qxa2 {[%emt 0:00:32]} 23. Qg5 {[%emt 0:00:37]} h6 {[%emt 0:00:56]} 24. Qg3 {[%emt 0:01:13]} Qf7 {[%emt 0:00:50]} 25. Nf2 {[%emt 0:01:17]} Kh7 {[%emt 0:02:06]} 26. Re3 {[%emt 0:01:15]} Re8 {[%emt 0:00:34]} 27. Ng4 {[%emt 0:00:45]} Rxe3 {[%emt 0:01:06]} 28. Nxe3 {[%emt 0:00:05]} Qg6 {[%emt 0:00:22]} 29. Qf4 {[%emt 0:01:38]} Qg5 {[%emt 0:00:30]} 30. Qxg5 {[%emt 0:00:25]} hxg5 {[%emt 0:00:06]} 31. Re1 {[%emt 0:00:22]} Kg6 {[%emt 0:00:42]} 32. h3 {[%emt 0:01:10]} Kf7 {[%emt 0:00:58]} 33. Kh2 {[%emt 0:00:24]} Bc6 {[%emt 0:01:12]} 34. Kg3 {[%emt 0:00:26]} a5 {[%emt 0:00:12]} 35. Kg4 {[%emt 0:00:43]} Kf6 {[%emt 0:00:34]} 36. Kh5 {[%emt 0:01:43]} Be8+ {[%emt 0:01:34]} 37. Kg4 {[%emt 0:00:21]} Bf7 {[%emt 0:01:08]} 38. h4 {[%emt 0:00:50]} Be6+ {[%emt 0:00:24]} 39. Kg3 {[%emt 0:00:05]} gxh4+ {[%emt 0:00:10]} 40. Kxh4 {[%emt 0:00:09]} a4 {[%emt 0:00:08]} 41. f4 {[%emt 0:31:38]} g6 {[%emt 0:30:54]} 42. g4 {[%emt 0:00:32]} a3 {[%emt 0:00:10]} 43. f5 {[%emt 0:00:53]} g5+ {[%emt 0:00:14]} 44. Kg3 {[%emt 0:00:19]} Bf7 {[%emt 0:00:08]} 45. c4 {[%emt 0:01:01]} a2 {[%emt 0:00:12]} 46. Ra1 {[%emt 0:00:07]} c6 {[%emt 0:00:12]} 0-1

[Event "Prague Open 2025"]
[Site "Prague"]
[Date "2025.01.11"]
[Round "2.2"]
[White "Senthil Maran K"]
[Black "Bezeyko, Olexander"]
[Result "1-0"]
[Annotator "RC"]
[ECO "A06"]
[WhiteElo "2398"]
[BlackElo "2050"]
[PlyCount "93"]
[EventDate "2025.01.07"]
[EventType "swiss"]
[EventCountry "CZE"]
[SourceTitle "playchess.com"]
[Source "ChessBase"]
[SourceQuality "1"]
[TimeControl "40/5400+30:1800+30"]

1. Nf3 {[%emt 0:10:56]} d5 {[%emt 0:01:03]} 2. g3 {[%emt 0:00:24]} Nf6 {[%emt 0:00:20]} 3. Bg2 {[%emt 0:00:13]} e6 {[%emt 0:01:12]} 4. d4 {[%emt 0:00:22]} c5 {[%emt 0:05:09]} 5. O-O {[%emt 0:02:03]} Nc6 {[%emt 0:02:11]} 6. c4 {[%emt 0:00:20]} dxc4 {[%emt 0:00:50]} 7. Ne5 {[%emt 0:07:00]} Bd7 {[%emt 0:01:39]} 8. Nxc6 {[%emt 0:02:24]} Bxc6 {[%emt 0:02:12]} 9. Bxc6+ {[%emt 0:00:13]} bxc6 {[%emt 0:00:04]} 10. Qa4 {[%emt 0:00:06]} cxd4 {[%emt 0:08:46]} 11. Qxc6+ {[%emt 0:01:10]} Nd7 {[%emt 0:00:03]} 12. Qxc4 {[%emt 0:00:26]} e5 {[%emt 0:06:44]} 13. e3 {[%emt 0:06:58]} Rc8 {[%emt 0:06:06]} 14. Qe2 {[%emt 0:01:22]} Bc5 {[%emt 0:02:52]} 15. exd4 {[%emt 0:00:43]} Bxd4 {[%emt 0:00:06]} 16. Be3 {[%emt 0:00:59]} Bxe3 {[%emt 0:07:54]} 17. Qxe3 {[%emt 0:00:16]} Qb6 {[%emt 0:00:35]} 18. Nc3 {[%emt 0:13:09]} Qxe3 {[%emt 0:05:24]} 19. fxe3 {[%emt 0:00:03]} Ke7 {[%emt 0:08:10]} 20. Rac1 {[%emt 0:04:07]} Nb6 {[%emt 0:14:26]} 21. Nb5 {[%emt 0:02:44]} a5 {[%emt 0:07:09]} 22. Na7 {[%emt 0:03:14]} Rxc1 {[%emt 0:01:53]} 23. Rxc1 {[%emt 0:00:02]} Ra8 {[%emt 0:03:12]} 24. Rc7+ {[%emt 0:09:12]} Nd7 {[%emt 0:05:43]} 25. Nc8+ {[%emt 0:00:39]} Ke6 {[%emt 0:00:42]} 26. e4 {[%emt 0:07:58]} Ra6 {[%emt 0:02:54]} 27. Kf2 {[%emt 0:04:11]} Nb8 {[%emt 0:04:15]} 28. Re7+ {[%emt 0:00:45]} Kf6 {[%emt 0:00:13]} 29. Rb7 {[%emt 0:00:13]} Nc6 {[%emt 0:00:38]} 30. Nb6 {[%emt 0:08:50]} Ra7 {[%emt 0:02:28]} 31. Nd5+ {[%emt 0:01:53]} Ke6 {[%emt 0:00:06]} 32. Rb5 {[%emt 0:00:50]} f5 {[%emt 0:00:51]} 33. Ke3 {[%emt 0:05:04]} g6 {[%emt 0:00:24]} 34. a4 {[%emt 0:01:37]} Kd6 {[%emt 0:00:29]} 35. Nb6 {[%emt 0:00:33]} Ra6 {[%emt 0:00:44]} 36. Nc4+ {[%emt 0:00:47]} Ke6 {[%emt 0:00:17]} 37. Rd5 {[%emt 0:01:38]} Kf6 {[%emt 0:00:43]} 38. Rd6+ {[%emt 0:00:09]} Ke7 {[%emt 0:00:06]} 39. Rd5 {[%emt 0:01:17]} Kf6 {[%emt 0:00:25]} 40. h4 {[%emt 0:01:05]} Nb4 {[%emt 0:00:59]} 41. Rxa5 {[%emt 0:31:30]} Rc6 {[%emt 0:30:29]} 42. Nxe5 {[%emt 0:01:49]} Re6 {[%emt 0:00:31]} 43. Nd7+ {[%emt 0:00:45]} Ke7 {[%emt 0:00:00]} 44. Nc5 {[%emt 0:00:00]} Re5 {[%emt 0:00:00]} 45. Rb5 {[%emt 0:00:00]} Nc2+ {[%emt 0:00:00]} 46. Kf4 {[%emt 0:00:00]} Kd6 {[%emt 0:00:00]} 47. Nb7+ {[%emt 0:00:00]} 1-0

[Event "Prague Open 2025"]
[Site "Prague"]
[Date "2025.01.11"]
[Round "2.3"]
[White "Siles, Jan"]
[Black "Jain Kashish Manoj"]
[Result "0-1"]
[Annotator "RC"]
[ECO "D12"]
[WhiteElo "2065"]
[BlackElo "2363"]
[PlyCount "106"]
[EventDate "2025.01.07"]
[EventType "swiss"]
[EventCountry "CZE"]
[SourceTitle "playchess.com"]
[Source "ChessBase"]
[SourceQuality "1"]
[TimeControl "40/5400+30:1800+30"]

1. d4 {[%emt 0:00:03]} d5 {[%emt 0:02:26]} 2. c4 {[%emt 0:00:17]} c6 {[%emt 0:00:07]} 3. Nf3 {[%emt 0:00:21]} Nf6 {[%emt 0:00:16]} 4. e3 {[%emt 0:00:35]} Bf5 {[%emt 0:00:42]} 5. Nc3 {[%emt 0:01:44]} e6 {[%emt 0:00:14]} 6. Nh4 {[%emt 0:01:18]} Bg6 {[%emt 0:00:42]} 7. Be2 {[%emt 0:01:49]} Nbd7 {[%emt 0:01:54]} 8. O-O {[%emt 0:02:16]} Be7 {[%emt 0:00:25]} 9. g3 {[%emt 0:02:32]} dxc4 {[%emt 0:10:01]} 10. Nxg6 {[%emt 0:01:50]} hxg6 {[%emt 0:00:02]} 11. Bxc4 {[%emt 0:00:15]} b5 {[%emt 0:07:59]} 12. Bd3 {[%emt 0:06:56]} O-O {[%emt 0:05:31]} 13. b3 {[%emt 0:08:28]} a6 {[%emt 0:11:59]} 14. Ne4 {[%emt 0:01:57]} e5 {[%emt 0:11:23]} 15. Bb2 {[%emt 0:04:20]} exd4 {[%emt 0:01:48]} 16. exd4 {[%emt 0:00:32]} Nd5 {[%emt 0:06:40]} 17. Rc1 {[%emt 0:02:34]} Rc8 {[%emt 0:01:08]} 18. Be2 {[%emt 0:06:51]} Qb6 {[%emt 0:05:28]} 19. Bf3 {[%emt 0:03:38]} Rfd8 {[%emt 0:00:10]} 20. Re1 {[%emt 0:03:06]} Nf8 {[%emt 0:13:20]} 21. Nc3 {[%emt 0:06:12]} Nxc3 {[%emt 0:01:36]} 22. Bxc3 {[%emt 0:00:22]} Bf6 {[%emt 0:00:14]} 23. Bg4 {[%emt 0:06:09]} Rb8 {[%emt 0:02:08]} 24. Qf3 {[%emt 0:02:45]} Rd5 {[%emt 0:04:51]} 25. Qg2 {[%emt 0:13:40]} Bxd4 {[%emt 0:02:05]} 26. Bf3 {[%emt 0:01:10]} Bxc3 {[%emt 0:00:34]} 27. Rxc3 {[%emt 0:00:24]} Qa5 {[%emt 0:00:21]} 28. Rec1 {[%emt 0:01:25]} Rd6 {[%emt 0:02:06]} 29. Rxc6 {[%emt 0:02:02]} Rxc6 {[%emt 0:00:46]} 30. Bxc6 {[%emt 0:01:11]} Qxa2 {[%emt 0:00:08]} 31. Bd5 {[%emt 0:01:40]} Qd2 {[%emt 0:01:32]} 32. Ra1 {[%emt 0:02:11]} Rd8 {[%emt 0:00:45]} 33. Bb7 {[%emt 0:03:02]} Qc3 {[%emt 0:00:24]} 34. Qf1 {[%emt 0:00:38]} a5 {[%emt 0:01:00]} 35. Ba6 {[%emt 0:01:26]} Rb8 {[%emt 0:03:51]} 36. Qe1 {[%emt 0:00:01]} Qxe1+ {[%emt 0:00:49]} 37. Rxe1 {[%emt 0:00:01]} Ne6 {[%emt 0:00:07]} 38. Rc1 {[%emt 0:03:53]} Nd4 {[%emt 0:00:06]} 39. Rc5 {[%emt 0:00:01]} Nxb3 {[%emt 0:01:31]} 40. Rxb5 {[%emt 0:00:01]} Rxb5 {[%emt 0:00:06]} 41. Bxb5 {[%emt 0:30:17]} Nc5 {[%emt 0:30:37]} 42. Kf1 {[%emt 0:05:08]} a4 {[%emt 0:00:20]} 43. Ke1 {[%emt 0:00:00]} a3 {[%emt 0:00:00]} 44. Bc4 {[%emt 0:00:00]} Nd3+ {[%emt 0:00:00]} 45. Kd2 {[%emt 0:00:00]} Nxf2 {[%emt 0:00:00]} 46. Kc3 {[%emt 0:00:00]} Ng4 {[%emt 0:00:00]} 47. h4 {[%emt 0:00:00]} Ne3 {[%emt 0:00:00]} 48. Be2 {[%emt 0:00:00]} Nf5 {[%emt 0:00:00]} 49. g4 {[%emt 0:00:00]} Nxh4 {[%emt 0:00:00]} 50. Kb3 {[%emt 0:00:00]} Kf8 {[%emt 0:00:00]} 51. Kxa3 {[%emt 0:00:00]} Ke7 {[%emt 0:00:00]} 52. Kb3 {[%emt 0:00:00]} Kf6 {[%emt 0:00:00]} 53. Bc4 {[%emt 0:00:00]} Nf3 {[%emt 0:00:00]} 0-1

[Event "Prague Open 2025"]
[Site "Prague"]
[Date "2025.01.11"]
[Round "2.5"]
[White "Kulig, Pawel"]
[Black "Horak, Martin"]
[Result "0-1"]
[Annotator "RC"]
[ECO "B75"]
[WhiteElo "2033"]
[BlackElo "2357"]
[PlyCount "60"]
[EventDate "2025.01.07"]
[EventType "swiss"]
[EventCountry "CZE"]
[SourceTitle "playchess.com"]
[Source "ChessBase"]
[SourceQuality "1"]
[TimeControl "40/5400+30:1800+30"]

1. e4 {[%emt 0:00:02]} c5 {[%emt 0:01:39]} 2. Nf3 {[%emt 0:00:06]} d6 {[%emt 0:00:05]} 3. d4 {[%emt 0:00:18]} cxd4 {[%emt 0:00:06]} 4. Nxd4 {[%emt 0:00:04]} Nf6 {[%emt 0:00:06]} 5. Nc3 {[%emt 0:00:03]} g6 {[%emt 0:00:06]} 6. f3 {[%emt 0:01:57]} Bg7 {[%emt 0:00:10]} 7. Be3 {[%emt 0:00:06]} a6 {[%emt 0:00:05]} 8. Qd2 {[%emt 0:02:07]} h5 {[%emt 0:00:06]} 9. O-O-O {[%emt 0:01:52]} b5 {[%emt 0:00:41]} 10. Kb1 {[%emt 0:16:04]} Nbd7 {[%emt 0:00:47]} 11. Qf2 {[%emt 0:10:05]} Bb7 {[%emt 0:02:41]} 12. Nb3 {[%emt 0:01:15]} Rc8 {[%emt 0:03:48]} 13. Bd4 {[%emt 0:03:03]} e5 {[%emt 0:14:42]} 14. Be3 {[%emt 0:01:56]} Rxc3 {[%emt 0:26:44]} 15. bxc3 {[%emt 0:00:06]} Qc7 {[%emt 0:00:05]} 16. Bd3 {[%emt 0:19:11]} O-O {[%emt 0:02:43]} 17. Rhf1 {[%emt 0:20:01]} d5 {[%emt 0:06:24]} 18. Bc1 {[%emt 0:04:58]} dxe4 {[%emt 0:02:50]} 19. fxe4 {[%emt 0:00:38]} Rc8 {[%emt 0:09:54]} 20. Ba3 {[%emt 0:01:39]} Qxc3 {[%emt 0:02:02]} 21. Qd2 {[%emt 0:04:46]} Qc7 {[%emt 0:01:41]} 22. Rfe1 {[%emt 0:00:55]} Nb6 {[%emt 0:01:28]} 23. Qa5 {[%emt 0:02:37]} Nfd7 {[%emt 0:07:56]} 24. Rd2 {[%emt 0:03:14]} Qc6 {[%emt 0:02:40]} 25. Rf2 {[%emt 0:01:02]} Na4 {[%emt 0:03:05]} 26. Ref1 {[%emt 0:00:31]} f5 {[%emt 0:01:49]} 27. Re1 {[%emt 0:01:38]} fxe4 {[%emt 0:00:44]} 28. Bxe4 {[%emt 0:00:52]} Nc3+ {[%emt 0:00:06]} 29. Ka1 {[%emt 0:00:03]} Nxe4 {[%emt 0:00:12]} 30. Rfe2 {[%emt 0:00:24]} Nc3 {[%emt 0:00:31]} 0-1

[Event "Prague Open 2025"]
[Site "Prague"]
[Date "2025.01.11"]
[Round "2.6"]
[White "Lalic, Bogdan"]
[Black "Skodras, Marios Konstantinos"]
[Result "1-0"]
[Annotator "RC"]
[ECO "D11"]
[WhiteElo "2321"]
[BlackElo "2013"]
[PlyCount "99"]
[EventDate "2025.01.07"]
[EventType "swiss"]
[EventCountry "CZE"]
[SourceTitle "playchess.com"]
[Source "ChessBase"]
[SourceQuality "1"]
[TimeControl "40/5400+30:1800+30"]

1. c4 {[%emt 0:03:29]} c6 {[%emt 0:04:58]} 2. d4 {[%emt 0:00:57]} d5 {[%emt 0:00:06]} 3. Nf3 {[%emt 0:00:19]} Nf6 {[%emt 0:00:07]} 4. Qc2 {[%emt 0:00:14]} g6 {[%emt 0:21:28]} 5. Bf4 {[%emt 0:03:26]} Bg7 {[%emt 0:02:20]} 6. e3 {[%emt 0:00:15]} Bf5 {[%emt 0:03:16]} 7. Bd3 {[%emt 0:02:09]} Bxd3 {[%emt 0:06:32]} 8. Qxd3 {[%emt 0:00:08]} Nbd7 {[%emt 0:02:15]} 9. Nc3 {[%emt 0:02:22]} e6 {[%emt 0:05:27]} 10. O-O {[%emt 0:00:45]} O-O {[%emt 0:01:14]} 11. Rfd1 {[%emt 0:01:40]} Re8 {[%emt 0:09:03]} 12. h3 {[%emt 0:00:46]} dxc4 {[%emt 0:03:21]} 13. Qxc4 {[%emt 0:00:09]} Nb6 {[%emt 0:04:51]} 14. Qb3 {[%emt 0:02:20]} Nfd5 {[%emt 0:00:51]} 15. Be5 {[%emt 0:02:05]} Nxc3 {[%emt 0:02:04]} 16. bxc3 {[%emt 0:01:17]} Qd5 {[%emt 0:02:02]} 17. Rab1 {[%emt 0:00:21]} Re7 {[%emt 0:03:14]} 18. Bxg7 {[%emt 0:06:26]} Kxg7 {[%emt 0:00:41]} 19. Qa3 {[%emt 0:01:25]} Ree8 {[%emt 0:00:50]} 20. Ne5 {[%emt 0:02:08]} Kg8 {[%emt 0:09:03]} 21. Qb4 {[%emt 0:18:27]} Qxa2 {[%emt 0:04:53]} 22. c4 {[%emt 0:00:04]} f6 {[%emt 0:11:35]} 23. Ra1 {[%emt 0:13:08]} Qe2 {[%emt 0:01:16]} 24. Re1 {[%emt 0:04:15]} Qc2 {[%emt 0:00:25]} 25. Rec1 {[%emt 0:00:31]} Qf5 {[%emt 0:00:36]} 26. Ng4 {[%emt 0:00:06]} Qg5 {[%emt 0:00:29]} 27. c5 {[%emt 0:00:32]} h5 {[%emt 0:00:29]} 28. Nh2 {[%emt 0:00:46]} Nd5 {[%emt 0:00:31]} 29. Qxb7 {[%emt 0:00:05]} Rab8 {[%emt 0:00:32]} 30. Qxc6 {[%emt 0:00:21]} Re7 {[%emt 0:00:16]} 31. Rcb1 {[%emt 0:03:08]} Rxb1+ {[%emt 0:00:42]} 32. Rxb1 {[%emt 0:00:02]} Kg7 {[%emt 0:00:30]} 33. Nf3 {[%emt 0:01:59]} Qf5 {[%emt 0:00:30]} 34. Rb8 {[%emt 0:00:06]} g5 {[%emt 0:00:30]} 35. Qc8 {[%emt 0:01:15]} Kg6 {[%emt 0:00:29]} 36. c6 {[%emt 0:05:18]} a5 {[%emt 0:00:13]} 37. Qh8 {[%emt 0:05:40]} Rg7 {[%emt 0:00:48]} 38. Nd2 {[%emt 0:09:18]} Nc7 {[%emt 0:00:30]} 39. Rg8 {[%emt 0:01:50]} Rxg8 {[%emt 0:00:29]} 40. Qxg8+ {[%emt 0:00:05]} Kh6 {[%emt 0:00:03]} 41. Qd8 {[%emt 0:30:47]} Nb5 {[%emt 0:30:59]} 42. c7 {[%emt 0:00:25]} Nxc7 {[%emt 0:00:20]} 43. Qxc7 {[%emt 0:00:04]} a4 {[%emt 0:00:27]} 44. Qc3 {[%emt 0:01:21]} Qb5 {[%emt 0:00:41]} 45. d5 {[%emt 0:02:34]} Qxd5 {[%emt 0:00:31]} 46. Qxf6+ {[%emt 0:00:07]} Kh7 {[%emt 0:00:01]} 47. Nf3 {[%emt 0:01:40]} e5 {[%emt 0:00:58]} 48. Nxe5 {[%emt 0:00:41]} Kg8 {[%emt 0:00:28]} 49. Qxg5+ {[%emt 0:00:13]} Kf8 {[%emt 0:00:32]} 50. Ng6+ {[%emt 0:00:11]} 1-0

[Event "Prague Open 2025"]
[Site "Prague"]
[Date "2025.01.11"]
[Round "2.7"]
[White "Llopis de Aysa, Manuel"]
[Black "Colijn, Stefan"]
[Result "1-0"]
[Annotator "RC"]
[ECO "D38"]
[WhiteElo "2031"]
[BlackElo "2315"]
[PlyCount "135"]
[EventDate "2025.01.07"]
[EventType "swiss"]
[EventCountry "CZE"]
[SourceTitle "playchess.com"]
[Source "ChessBase"]
[SourceQuality "1"]
[TimeControl "40/5400+30:1800+30"]

1. d4 {[%emt 0:00:03]} d5 {[%emt 0:01:42]} 2. c4 {[%emt 0:00:11]} e6 {[%emt 0:00:06]} 3. Nf3 {[%emt 0:00:06]} Nf6 {[%emt 0:00:22]} 4. Nc3 {[%emt 0:00:14]} Bb4 {[%emt 0:01:31]} 5. Qa4+ {[%emt 0:01:13]} Nc6 {[%emt 0:00:07]} 6. cxd5 {[%emt 0:00:21]} exd5 {[%emt 0:01:15]} 7. Bg5 {[%emt 0:00:18]} O-O {[%emt 0:01:06]} 8. e3 {[%emt 0:02:50]} h6 {[%emt 0:01:38]} 9. Bxf6 {[%emt 0:01:06]} Qxf6 {[%emt 0:00:11]} 10. Rc1 {[%emt 0:01:15]} Be6 {[%emt 0:12:50]} 11. a3 {[%emt 0:21:55]} Bd6 {[%emt 0:04:28]} 12. Nb5 {[%emt 0:02:04]} Rfc8 {[%emt 0:18:59]} 13. Nxd6 {[%emt 0:07:36]} cxd6 {[%emt 0:04:47]} 14. Be2 {[%emt 0:00:43]} a6 {[%emt 0:01:03]} 15. b4 {[%emt 0:12:11]} Qd8 {[%emt 0:08:32]} 16. O-O {[%emt 0:01:52]} Rc7 {[%emt 0:00:04]} 17. Qd1 {[%emt 0:10:27]} Rac8 {[%emt 0:01:07]} 18. Qd2 {[%emt 0:00:16]} Bf5 {[%emt 0:04:01]} 19. Rfd1 {[%emt 0:10:29]} Ne7 {[%emt 0:04:16]} 20. Ne1 {[%emt 0:01:15]} Qd7 {[%emt 0:02:05]} 21. b5 {[%emt 0:05:10]} axb5 {[%emt 0:03:11]} 22. Rxc7 {[%emt 0:02:18]} Rxc7 {[%emt 0:04:34]} 23. Qb2 {[%emt 0:03:02]} Qc8 {[%emt 0:11:43]} 24. Bxb5 {[%emt 0:02:28]} Rc3 {[%emt 0:00:09]} 25. h3 {[%emt 0:03:26]} Qc7 {[%emt 0:00:34]} 26. a4 {[%emt 0:01:18]} Be4 {[%emt 0:01:26]} 27. Ra1 {[%emt 0:03:31]} Ng6 {[%emt 0:03:23]} 28. Ra3 {[%emt 0:02:09]} Rc1 {[%emt 0:01:12]} 29. Ra1 {[%emt 0:00:27]} Rxa1 {[%emt 0:02:21]} 30. Qxa1 {[%emt 0:00:01]} Nh4 {[%emt 0:00:28]} 31. Qd1 {[%emt 0:03:24]} Qc3 {[%emt 0:00:57]} 32. Bf1 {[%emt 0:01:48]} g5 {[%emt 0:01:18]} 33. Qe2 {[%emt 0:00:49]} Kg7 {[%emt 0:02:31]} 34. g3 {[%emt 0:00:30]} Nf5 {[%emt 0:01:50]} 35. Nd3 Qa1 {[%emt 0:01:26]} 36. Nb2 {[%emt 0:01:00]} b6 {[%emt 0:00:33]} 37. Kh2 {[%emt 0:00:33]} Kg6 {[%emt 0:00:34]} 38. Bg2 {[%emt 0:00:34]} h5 {[%emt 0:00:23]} 39. Qb5 {[%emt 0:00:33]} h4 {[%emt 0:00:20]} 40. g4 {[%emt 0:00:29]} Ne7 {[%emt 0:00:55]} 41. Qxb6 {[%emt 0:18:05]} f6 {[%emt 0:00:42]} 42. Bxe4+ {[%emt 0:05:22]} dxe4 {[%emt 0:00:06]} 43. Qb7 {[%emt 0:00:59]} d5 {[%emt 0:09:32]} 44. Kg2 {[%emt 0:04:08]} Kf7 {[%emt 0:00:26]} 45. Qb5 {[%emt 0:00:24]} Kg7 {[%emt 0:04:28]} 46. a5 {[%emt 0:01:36]} Ng6 {[%emt 0:00:21]} 47. a6 {[%emt 0:01:00]} Nf4+ {[%emt 0:07:46]} 48. exf4 {[%emt 0:00:51]} gxf4 {[%emt 0:00:01]} 49. Qd7+ {[%emt 0:01:19]} Kh6 {[%emt 0:00:29]} 50. Qf5 {[%emt 0:01:05]} f3+ {[%emt 0:01:20]} 51. Kh2 {[%emt 0:00:02]} Kg7 {[%emt 0:02:13]} 52. Qd7+ {[%emt 0:01:02]} Kh6 {[%emt 0:00:01]} 53. Qf7 {[%emt 0:00:38]} Qxa6 {[%emt 0:01:01]} 54. Nd1 {[%emt 0:00:28]} Qd6+ {[%emt 0:02:28]} 55. Kg1 {[%emt 0:00:04]} Qb6 {[%emt 0:00:24]} 56. Ne3 {[%emt 0:00:41]} Qb1+ {[%emt 0:00:01]} 57. Kh2 {[%emt 0:00:16]} Qb8+ {[%emt 0:00:01]} 58. Kg1 {[%emt 0:00:27]} Qb1+ {[%emt 0:00:01]} 59. Nf1 {[%emt 0:00:32]} Qb6 {[%emt 0:01:42]} 60. Qf8+ {[%emt 0:00:36]} Kh7 {[%emt 0:00:22]} 61. Qf7+ {[%emt 0:00:06]} Kh6 {[%emt 0:01:09]} 62. Qxd5 {[%emt 0:00:11]} Qb1 {[%emt 0:00:28]} 63. Qh5+ {[%emt 0:00:39]} Kg7 {[%emt 0:00:01]} 64. Qxh4 {[%emt 0:00:20]} Qe1 {[%emt 0:00:40]} 65. Qg3 {[%emt 0:00:54]} Qd1 {[%emt 0:00:47]} 66. g5 {[%emt 0:00:29]} f5 {[%emt 0:01:36]} 67. Qe5+ {[%emt 0:00:24]} Kg6 {[%emt 0:00:01]} 68. Qf6+ {[%emt 0:00:19]} 1-0